Cogmind - Beta 11 X4 @@@ ROGUE MODE // 2021.05.17 @ 06:10:16 Player: Magi163 Result: Core destroyed Performance ------------- Evolutions (4) 2000 Regions Visited (8) 1600 Robots Destroyed (143) 715 Value Destroyed (5057) 5057 Prototype IDs (10) 200 Alien Tech Used (0) 0 Bonus (149) 149 TOTAL SCORE: 9721 Bonus ------- High Alert Combat Kills 37 Follower Combat Kills 148 Friendly Fire -36 Cogmind --------- Core Integrity 0/850 Matter 278/300 Energy 319/450 System Corruption 45% Temperature Critical (653) Movement Treading (660) Ox5 Location -6/Cetus Parts ------- > --- POWER (1) -------- Fission Core > --- PROPULSION (5) --- Light Treads Flexi-carbon Leg Armored Leg Armored Leg > --- UTILITY (6) ------ Huge Storage Unit Energy Well Advanced Sensor Array > --- WEAPON (3) ------- Improved KE Penetrator > --- INVENTORY (25) --- Light Nuclear Core Improved Deuterium Engine Micro Nuclear Core Light Angular Momentum Engine Compact Wheel Improved Heat Sink Improved Signal Interpreter Launcher Loader Beamcaster Heavy Particle Cannon Phase Cannon Battle Rifle Gauss Rifle Ripper Peak State ------------ > --- POWER ------------ Fission Core > --- PROPULSION ------- Light Treads Flexi-carbon Leg Armored Leg Armored Leg > --- UTILITY ---------- Huge Storage Unit Energy Well Armor Integrity Analyzer Improved Light Armor Plating > --- WEAPON ----------- Advanced Variable Charge Gun Advanced Variable Charge Gun Improved KE Penetrator > --- INVENTORY -------- Light Nuclear Core Improved Deuterium Engine Micro Nuclear Core Light Angular Momentum Engine Compact Wheel Improved Heat Sink Advanced Sensor Array Improved Signal Interpreter Launcher Loader Beamcaster Heavy Particle Cannon Phase Cannon Heavy Plasma Cannon Battle Rifle Gauss Rifle Ripper [Rating: 62] Favorites ----------- Power Heavy Ion Engine Engine Heavy Ion Engine Power Core Micro Nuclear Core Propulsion Light Treads Treads Light Treads Leg Aluminum Leg Wheel Compact Wheel Utility Huge Storage Unit Device Coolant Injector Storage Huge Storage Unit Processor Improved Targeting Computer Protection Improved Light Armor Plating Weapon Lightning Gun Energy Gun Lightning Gun Energy Cannon Heavy Particle Cannon Ballistic Gun Minigun Ballistic Cannon Light Cannon Launcher Rocket Launcher Special Weapon Enhanced Flamer Slashing Weapon Axe Build | -11 -10 -10 -9 -8 -7 -6 -6 -6 ------- Run | Scr Mat Min Mat Mat Fac Fac Ext Cet Slots Evolved 8 | . . . 2 2 2 2 . . Power . | . . . . . . . . . Propulsion 3 | . . . . 2 1 . . . Utility 4 | . . . 1 . 1 2 . . Weapon 1 | . . . 1 . . . . . Parts Attached 170 | . 6 10 19 12 21 28 50 24 Power 10 | . . 2 1 . 1 2 2 2 Engine 7 | . . 2 1 . 1 1 1 1 Core 3 | . . . . . . 1 1 1 Reactor . | . . . . . . . . . Propulsion 55 | . 2 2 9 4 7 7 16 8 Treads 34 | . . . 2 4 7 5 12 4 Leg 6 | . . . 2 . . . . 4 Wheel 15 | . 2 2 5 . . 2 4 . Hover . | . . . . . . . . . Flight . | . . . . . . . . . Utility 34 | . 4 . 2 1 4 5 10 8 Device 12 | . . . 1 . 2 2 4 3 Storage 5 | . 3 . . . . 1 . 1 Processor 7 | . 1 . . . 2 2 1 1 Hackware . | . . . . . . . . . Protection 10 | . . . 1 1 . . 5 3 Artifact . | . . . . . . . . . Weapon 71 | . . 6 7 7 9 14 22 6 Energy Gun 20 | . . 1 3 . 3 4 7 2 Energy Cannon 9 | . . . . . 1 3 2 3 Ballistic Gun 23 | . . 1 2 6 1 6 6 1 Ballistic Cannon 3 | . . 2 1 . . . . . Launcher 9 | . . 1 1 . 2 . 5 . Special Weapon 1 | . . 1 . . . . . . Impact Weapon . | . . . . . . . . . Slashing Weapon 6 | . . . . 1 2 1 2 . Piercing Weapon . | . . . . . . . . . Special Melee Weapon . | . . . . . . . . . Unidentified Prototypes 5 | . . . 3 . . . . 2 Corrupted Parts 9 | . . . . 1 2 2 4 . System Corruption 37 | . . . . 1 18 4 14 . Parts Lost 92 | . . 7 4 6 9 13 32 21 Power 8 | . . 2 . 1 . 1 2 2 Propulsion 34 | . . 2 2 . 7 6 11 6 Utility 17 | . . . 1 1 1 1 5 8 Weapon 33 | . . 3 1 4 1 5 14 5 Highest Loss Streak 12 | . . 6 4 3 4 4 12 12 Average Slot Usage (%) 94 | . 94 98 97 97 93 89 92 88 Engine 7 | . 14 13 11 8 7 5 1 1 Core 1 | . . . . . . . 4 4 Treads 18 | . . . 1 31 31 21 20 11 Leg 1 | . 13 . 3 . . . . 7 Wheel 8 | . 14 27 16 2 . 2 6 8 Device 5 | . . . 3 . 7 14 7 10 Storage 10 | . 14 14 11 9 7 6 13 8 Processor 12 | . 8 14 11 9 15 17 12 9 Protection 3 | . . . 7 8 . . 5 4 Energy Gun 7 | . 14 5 8 7 8 13 4 3 Energy Cannon 1 | . . . . . 2 1 1 6 Ballistic Gun 9 | . 14 5 14 16 8 3 7 8 Ballistic Cannon 2 | . . 14 5 2 . . . . Launcher 1 | . . . 2 . 2 . 1 . Naked Turns . | . . . . . . . . . Heaviest Build 133 | 13 88 90 98 107 103 104 133 124 Greatest Support 113 | 20 26 32 42 82 110 102 113 83 Greatest Overweight (x) 7 | . 3 5 5 7 2 2 3 2 Average Overweight (x) 1 | . . 2 3 1 . 1 . 1 Largest Inventory Capacity 25 | 8 25 25 25 25 25 25 25 25 Average Capacity 24 | 8 12 25 25 25 25 25 25 25 Most Carried 25 | 6 15 22 25 25 25 25 25 25 Average Carried 21 | 6 10 18 21 24 24 23 21 19 Final Capacity 25 | 8 25 25 25 25 25 25 25 25 Final Carried 25 | 6 15 22 25 25 25 21 25 15 Class Distribution -------------------- 29% | Scavenger-Gunner 24% | Mutant 22% | Scavenger-Mutant 15% | Scavenger-Skirmisher 8% | Gunner Dominant Class ---------------- Mutant | -10/Materials Mutant | -10/Mines Gunner | -9/Materials Scavenger-Gunner | -8/Materials Scavenger-Skirmisher | -7/Factory Scavenger-Gunner | -6/Factory Scavenger-Mutant | -6/Extension Scavenger-Gunner | -6/Cetus Resources | -11 -10 -10 -9 -8 -7 -6 -6 -6 ----------- Run | Scr Mat Min Mat Mat Fac Fac Ext Cet Matter Collected 3499 | 200 22 154 532 482 446 482 881 300 Remotely . | . . . . . . . . . Salvage Created 6119 | . 156 224 747 1084 886 1139 1396 487 Parts 294 | . 8 15 43 59 51 47 54 17 Haulers Intercepted 5 | . 1 . 1 . 2 1 . . Recyclers Shooed 9 | . . . 2 3 1 1 2 . Parts Field Recycled . | . . . . . . . . . Retrieved Matter . | . . . . . . . . . Parts Self-Destructed . | . . . . . . . . . Prevented . | . . . . . . . . . Kills | -11 -10 -10 -9 -8 -7 -6 -6 -6 ------- Run | Scr Mat Min Mat Mat Fac Fac Ext Cet Combat Hostiles Destroyed 98 | . 2 7 19 17 13 10 23 7 Melee 5 | . . . . . . . 5 . Guns 55 | . 2 2 5 15 9 9 8 5 Cannons 16 | . . 5 5 2 1 1 1 1 AOE 20 | . . . 9 . 2 . 9 . Classes Destroyed 14 | . 3 3 3 1 2 1 1 . Worker 8 | . . 1 . . 5 2 . . Builder 3 | . . . . . 2 1 . . Tunneler 1 | . . . 1 . . . . . Hauler 5 | . 1 . 1 . 2 1 . . Recycler 16 | . . 1 2 3 4 3 3 . Operator 5 | . . . 1 . . 1 3 . Watcher 7 | . 1 . . 2 1 2 . 1 Swarmer 20 | . . 3 . 3 6 3 5 . Grunt 45 | . 2 4 17 8 3 2 7 2 Brawler 2 | . . . . . . 1 . 1 Sentry 15 | . . . 2 4 1 3 5 . Hunter 7 | . . . . 2 1 . 4 . Programmer 3 | . . . . . 2 1 . . Behemoth 2 | . . . . . . . 2 . Cetus Guard 4 | . . . . . . . . 4 Best Kill Streak 11 | . 2 3 9 4 11 7 6 5 Combat Bots Only 6 | . 2 2 6 3 3 4 6 4 Max Kills in Single Turn 3 | . 1 1 2 2 2 2 3 2 Gunslinging . | . . . . . . . . . Exploded 3 | . . . 2 . 1 . 3 . Melee 1 | . . . . . . . 1 . Uniques/NPCs Destroyed . | . . . . . . . . . Combat | -11 -10 -10 -9 -8 -7 -6 -6 -6 -------- Run | Scr Mat Min Mat Mat Fac Fac Ext Cet Damage Taken 10905 | . 55 658 522 1109 1059 1503 3321 2678 Core 1422 | . 21 142 70 137 109 125 383 435 Absorbed by Shields 184 | . . . . . . . . 184 Core Remaining (%) 75 | 100 . 34 82 75 84 . . . Volleys Fired 305 | . 20 34 43 48 41 41 56 22 Largest 3 | . 2 2 3 3 3 3 3 3 Hottest 205 | . 70 120 125 125 165 185 186 205 Shots Fired 702 | . 40 59 92 142 95 101 112 61 Gun 557 | . 40 24 63 131 79 94 79 47 Cannon 87 | . . 26 16 11 5 7 8 14 Launcher 52 | . . 3 13 . 11 . 25 . Special 6 | . . 6 . . . . . . Kinetic 372 | . 20 36 51 110 35 50 37 33 Thermal 128 | . 20 20 16 . 5 4 35 28 Explosive 52 | . . 3 13 . 11 . 25 . Electromagnetic 150 | . . . 12 32 44 47 15 . Robot Hit Streak 22 | . 11 12 9 17 22 19 22 18 Robot Miss Streak 5 | . 2 4 3 3 2 4 5 2 Penetration Max 1 | . . . . . . . 1 1 Secondary Targets 6 | . . . . 2 2 . 1 1 Max Gunslinging Chain 1 | . . . . 1 1 . 1 1 Shots Hit Robots 504 | . 31 35 59 106 64 72 97 40 Core Hits 287 | . 7 14 43 47 44 37 72 23 Critical Kills 5 | . . . . . . 3 . 2 Critical Parts Destroyed 3 | . . . . . . 1 2 . Critical Strikes 15 | . . . 1 1 . 8 2 3 Meltdown 1 | . . . . . . . . 1 Destroy 8 | . . . . . . 4 2 2 Blast 2 | . . . 1 1 . . . . Corrupt 4 | . . . . . . 4 . . Melee Attacks 36 | . . . . 5 3 3 25 . Impact . | . . . . . . . . . Slashing 36 | . . . . 5 3 3 25 . Piercing . | . . . . . . . . . Sneak Attacks 3 | . . . . . . . 3 . Combat Hostiles . | . . . . . . . . . Follow-up Attacks . | . . . . . . . . . Damage Inflicted 13281 | . 324 495 1573 1760 2055 1685 4010 1379 Guns 7144 | . 324 203 474 1631 1049 1297 1154 1012 Cannons 1333 | . . 260 176 129 118 158 125 367 Explosions 3833 | . . . 923 . 883 230 1797 . Melee 934 | . . . . . . . 934 . Ramming 5 | . . . . . 5 . . . Kinetic 4422 | . 138 330 353 1316 500 674 445 666 Thermal 2512 | . 186 165 110 . 435 210 693 713 Explosive 3406 | . . . 923 . 566 120 1797 . Electromagnetic 2002 | . . . 187 444 549 681 141 . Impact . | . . . . . . . . . Slashing 934 | . . . . . . . 934 . Piercing . | . . . . . . . . . Highest Corruption 45 | . . . . 1 21 9 23 45 Average Corruption 10 | . . . . 1 17 4 15 26 Corruption Purged . | . . . . . . . . . Effects 144 | . . . . 7 44 14 67 12 Message Errors 38 | . . . . 3 9 8 14 4 Matter Fused 18 | . . . . . 7 3 7 1 Heat Flow Errors 14 | . . . . . 6 1 7 . Energy Discharges 17 | . . . . 1 6 . 9 1 Parts Rejected 1 | . . . . . . . 1 . Data Loss (minor) 13 | . . . . 2 2 1 8 . Data Loss (major) 7 | . . . . . 1 . 5 1 Misfires 6 | . . . . . 1 . 4 1 Alerts 2 | . . . . . . . 2 . Misdirections 18 | . . . . . 9 . 9 . Weapon Failures 10 | . . . . 1 3 1 1 4 Overload Shots . | . . . . . . . . . Overflow Damage 410 | . . . 15 . 26 25 344 . Projectiles 6 | . . . . . 6 . . . Explosions 109 | . . . 15 . 20 25 49 . Melee 295 | . . . . . . . 295 . Knockbacks 6 | . . 1 3 2 . . . . Impact . | . . . . . . . . . Kinetic 6 | . . 1 3 2 . . . . Secondary . | . . . . . . . . . Self-Inflicted Damage 204 | . . . 20 . 56 128 . . Shots 4 | . . . 1 . 1 2 . . Rammed 1 | . . . . . . . . 1 Targets Rammed 2 | . . . . . 1 . . 1 Kicked . | . . . . . . . . . Crushed 1 | . . . . . 1 . . . Highest Temperature 657 | . 150 236 356 163 347 159 279 657 Average Temperature 95 | . 77 111 80 58 100 52 100 227 Received Heat Transfer 2587 | . 30 306 276 495 126 222 447 685 Effects 14 | . . 3 . . 1 . 1 9 Energy Bleed 3 | . . . . . . . 1 2 Interference 4 | . . 3 . . 1 . . . Short Circuit 1 | . . . . . . . . 1 Damage (major) 5 | . . . . . . . . 5 Damage (core) 1 | . . . . . . . . 1 Siege Activations . | . . . . . . . . . Robots Corrupted 2 | . . . . . 1 1 . . Combat Hostiles 1 | . . . . . 1 . . . Parts Fried 14 | . . . 1 1 4 6 2 . Impact Corruptions . | . . . . . . . . . Robots Melted 1 | . . . . . . . . 1 Combat Hostiles 1 | . . . . . . . . 1 Parts Melted 5 | . . 2 . . 1 1 . 1 Heat Transferred 4464 | . 555 623 250 . 398 248 1396 994 Parts Sabotaged . | . . . . . . . . . Parts Stolen . | . . . . . . . . . Parts Stripped . | . . . . . . . . . Power Chain Reactions 3 | . . . . . 1 2 . . Missiles Intercepted . | . . . . . . . . . Alert | -11 -10 -10 -9 -8 -7 -6 -6 -6 ------- Run | Scr Mat Min Mat Mat Fac Fac Ext Cet Peak Influence 458 | . 100 124 458 403 267 214 213 42 Initial 159 | . . 39 1 159 40 57 59 42 Average 111 | . 46 42 268 197 118 101 71 19 Maximum Alert Level 2 | . . . 2 2 1 1 1 . Low Security (%) 80 | 100 100 100 25 38 81 99 94 100 Level 1 18 | . . . 63 60 18 . 5 . Level 2 . | . . . 10 . . . . . Level 3 . | . . . . . . . . . Level 4 . | . . . . . . . . . Level 5 . | . . . . . . . . . High Security . | . . . . . . . . . Max Security . | . . . . . . . . . Squads Dispatched 20 | . 1 1 4 3 4 1 6 . Investigation 5 | . . 1 1 1 . . 2 . Extermination 3 | . . . . . 2 1 . . Reinforcement 12 | . 1 . 3 2 2 . 4 . Assault . | . . . . . . . . . Garrison . | . . . . . . . . . Intercept . | . . . . . . . . . Construction Impeded 2 | . . . 1 . . . 1 . Haulers Reinforced . | . . . . . . . . . Cargo Convoy Interrupts . | . . . . . . . . . Stealth | -11 -10 -10 -9 -8 -7 -6 -6 -6 --------- Run | Scr Mat Min Mat Mat Fac Fac Ext Cet Distress Signals 9 | . . . 4 2 . 1 1 1 Communications Jammed . | . . . . . . . . . Distress Signals . | . . . . . . . . . Times Spotted 152 | . 5 7 27 29 22 16 34 12 Peak Tracking Total 7 | . 2 5 7 5 4 6 5 7 Tactical Retreats 4 | . . . . 1 1 1 1 . Traps | -11 -10 -10 -9 -8 -7 -6 -6 -6 ------- Run | Scr Mat Min Mat Mat Fac Fac Ext Cet Traps Triggered 5 | . . . 1 1 1 . 2 . Indirectly . | . . . . . . . . . Trap Hack Attempts . | . . . . . . . . . Triggered . | . . . . . . . . . Disarmed . | . . . . . . . . . Reprogrammed . | . . . . . . . . . Reused . | . . . . . . . . . Traps Extracted . | . . . . . . . . . Installed . | . . . . . . . . . Triggered 1 | . . . . . . 1 . . Machines | -11 -10 -10 -9 -8 -7 -6 -6 -6 ---------- Run | Scr Mat Min Mat Mat Fac Fac Ext Cet Machines Disabled 13 | . . . 3 . 1 2 7 . Max in Single Turn 1 | . . . 1 . 1 1 1 . Energy Cycler 2 | . . . . . . . 2 . Machines Sabotaged . | . . . . . . . . . Garrisons Compromised . | . . . . . . . . . Overloaded Fab Kills . | . . . . . . . . . Fab Network Shutdowns . | . . . . . . . . . Hacking | -11 -10 -10 -9 -8 -7 -6 -6 -6 --------- Run | Scr Mat Min Mat Mat Fac Fac Ext Cet Machines Accessed 23 | . 2 1 1 6 2 4 7 . Terminals 20 | . 2 . 1 5 2 4 6 . Fabricators . | . . . . . . . . . Repair Stations . | . . . . . . . . . Recycling Units 1 | . . . . . . . 1 . Scanalyzers 1 | . . . . 1 . . . . Garrison Access . | . . . . . . . . . Total Hacks 62 | . 10 1 1 11 5 11 23 . Successful 33 | . 2 1 1 6 3 8 12 . Failed 29 | . 8 . . 5 2 3 11 . Catastrophic 8 | . 2 . . 3 . . 3 . Database Lockouts . | . . . . . . . . . Manual 22 | . 8 . . 6 1 . 7 . Terminals 59 | . 10 . 1 10 5 11 22 . Fabricators . | . . . . . . . . . Repair Stations . | . . . . . . . . . Recycling Units 1 | . . . . . . . 1 . Scanalyzers 1 | . . . . 1 . . . . Garrison Access . | . . . . . . . . . Terminal Hacks 27 | . 1 1 1 4 3 8 9 . Part Schematic 1 | . . . . . . . 1 . Prototype ID Bank 2 | . . . . . . 1 1 . Open Door 1 | . . 1 . . . . . . Level Access Points 1 | . . . . . 1 . . . Emergency Access Points 1 | . 1 . . . . . . . Alert Level 11 | . . . 1 2 1 3 4 . Unreport Threat 3 | . . . . 1 1 . 1 . Locate Traps 1 | . . . . . . 1 . . Recall Investigation 1 | . . . . . . . 1 . Hauler Manifests 1 | . . . . . . 1 . . Zone Layout 4 | . . . . 1 . 2 1 . Fabricator Hacks . | . . . . . . . . . Repair Station Hacks . | . . . . . . . . . Recycling Unit Hacks 1 | . . . . . . . 1 . Report Inventory 1 | . . . . . . . 1 . Scanalyzer . | . . . . . . . . . Garrison Access Hacks . | . . . . . . . . . Unauthorized Hacks 5 | . 1 . . 2 . . 2 . Terminals 5 | . 1 . . 2 . . 2 . Track 2 | . 1 . . 1 . . . . Botnet 2 | . . . . . . . 2 . Disrupt 1 | . . . . 1 . . . . Fabricators . | . . . . . . . . . Repair Stations . | . . . . . . . . . Recycling Units . | . . . . . . . . . Scanalyzers . | . . . . . . . . . Garrison Access . | . . . . . . . . . Data Cores Recovered 1 | . . . . . . 1 . . Used . | . . . . . . . . . Hacking Detections 17 | . 2 . 1 6 1 2 5 . Full Trace Events 1 | . . . . . . . 1 . Feedback Events . | . . . . . . . . . Feedback Blocked . | . . . . . . . . . Robot Schematics Acquired . | . . . . . . . . . Robots Built . | . . . . . . . . . Matter . | . . . . . . . . . Time . | . . . . . . . . . Total Robot Build Rating . | . . . . . . . . . Part Schematics Acquired 1 | . . . . . . . 1 . Parts Built . | . . . . . . . . . Matter . | . . . . . . . . . Time . | . . . . . . . . . Total Part Build Rating . | . . . . . . . . . Parts Repaired . | . . . . . . . . . Time . | . . . . . . . . . Parts Recycled . | . . . . . . . . . Recycled Matter . | . . . . . . . . . Retrieved Matter . | . . . . . . . . . Retrieved Components . | . . . . . . . . . Parts Scanalyzed . | . . . . . . . . . Part Schematics Acquired . | . . . . . . . . . Parts Damaged . | . . . . . . . . . Bothacking | -11 -10 -10 -9 -8 -7 -6 -6 -6 ------------ Run | Scr Mat Min Mat Mat Fac Fac Ext Cet Used RIF Installer . | . . . . . . . . . Robots Hacked . | . . . . . . . . . Non-combat . | . . . . . . . . . Combat . | . . . . . . . . . Robot Hacks Applied . | . . . . . . . . . Relay Couplers Released . | . . . . . . . . . Robots Rewired 12 | . . . . . . . 12 . Allies Hacked . | . . . . . . . . . Hacks Repelled . | . . . . . . . . . Allies | -11 -10 -10 -9 -8 -7 -6 -6 -6 -------- Run | Scr Mat Min Mat Mat Fac Fac Ext Cet Total Allies 14 | . . . . . . . 14 . Largest Group 4 | . . . . . . . 4 4 Highest-Rated Group 115 | . . . . . . . 115 115 Highest-Rated Ally 37 | . . . . . . . 37 37 Total Orders . | . . . . . . . . . Ally Attacks 76 | . . . . . . . 63 13 Total Damage 1284 | . . . . . . . 1059 225 Kills 5 | . . . . . . . 5 . Allies Corrupted 1 | . . . . . . . 1 . Allies Melted 1 | . . . . . . . 1 . Intel | -11 -10 -10 -9 -8 -7 -6 -6 -6 ------- Run | Scr Mat Min Mat Mat Fac Fac Ext Cet Robot Analysis Total . | . . . . . . . . . Derelict Logs Recovered 1 | . . 1 . . . . . . Drone Launches . | . . . . . . . . . Drone Recoveries . | . . . . . . . . . Exploration | -11 -10 -10 -9 -8 -7 -6 -6 -6 ------------- Run | Scr Mat Min Mat Mat Fac Fac Ext Cet Turns Passed 7079 | 39 393 983 502 1223 1041 1093 1616 189 Spaces Moved 3055 | 33 252 635 230 430 396 472 568 39 Core . | . . . . . . . . . Treads 1448 | . . . 1 340 396 323 366 22 Legs 178 | 33 143 . . . . . . 2 Wheels 1429 | . 109 635 229 90 . 149 202 15 Hover . | . . . . . . . . . Flight . | . . . . . . . . . Fastest Speed 105 | 120 105 130 130 140 157 120 115 115 Average Speed 177 | 120 114 130 151 235 204 193 195 205 Slowest Speed 360 | 120 135 175 352 256 360 260 260 280 Overloaded Moves . | . . . . . . . . . Propulsion Burnouts . | . . . . . . . . . Robots Hopped . | . . . . . . . . . Cave-ins Triggered 2 | . . . . . . 1 . 1 Exploration Rate (%) 35 | 3 35 97 24 38 12 14 77 18 Regions Visited 8 Branch Regions 3 Pre-discovered Areas . | . . . . . . . . . Known Exits Taken 2 | . . . . . 1 1 . . Unknown Exits Taken 6 | 1 1 1 1 1 . . 1 . Scrap Searched 2 | . . 2 . . . . . . Spaces Dug 33 | . . 22 . 5 3 3 . . Terrain Destroyed 244 | . . 34 47 5 57 40 50 11 Melee 11 | . . . . 5 3 3 . . Projectile 13 | . . . . . . . 2 11 AOE 220 | . . 34 47 . 54 37 48 . Terrain Rammed . | . . . . . . . . . Walls Destroyed . | . . . . . . . . . Machines Disabled . | . . . . . . . . . Actions | -11 -10 -10 -9 -8 -7 -6 -6 -6 --------- Run | Scr Mat Min Mat Mat Fac Fac Ext Cet Total 4060 | 32 321 723 308 540 549 568 924 95 Wait 165 | . 28 31 3 13 68 9 12 1 Move 3047 | 32 251 634 229 429 395 471 567 39 Hop . | . . . . . . . . . Pick Up 117 | . 11 14 10 19 13 10 34 6 Fast Attach 30 | . 2 . 1 2 4 6 14 1 Attach 79 | . . 7 7 6 6 11 25 17 Detach 5 | . . . 1 . . 1 2 1 Swap 61 | . 4 3 11 4 11 11 11 6 Drop 46 | . 5 . 3 14 7 5 11 1 Fire 305 | . 20 34 43 48 41 41 56 22 Melee 36 | . . . . 5 3 3 25 . Ram . | . . . . . . . . . Kick . | . . . . . . . . . Crush 2 | . . . . . 1 . . 1 Escape Stasis 8 | . . . . . . . 8 . Rewire 159 | . . . . . . . 159 . Trap . | . . . . . . . . . Miscellaneous . | . . . . . . . . . Route ------- -11/Scrapyard -10/Materials -10/Mines (discovered 2 exits: *Mat x2) -9/Materials (discovered 2 exits: *Mat / Min) -8/Materials -7/Factory (discovered 4 exits: *Fac x4) -6/Factory -6/Extension (discovered 3 exits: [*Fac x2] / [*Cet]) -6/Cetus History --------- Turn | Location | Event 1 | -11/Scrapyard | Discovered new exit (range 3) 40 | -11/Scrapyard | Entered Materials 309 | -10/Materials | Build established: Mutant 411 | -10/Materials | Discovered new exit (range 14) 433 | -10/Materials | Entered Mines 456 | -10/Mines | Found a damaged Exp. Sensor Array with a note attached 459 | -10/Mines | Found Prototype Device 608 | -10/Mines | A weapon hastily lodged in a ceiling crevice suddenly fell to the ground 672 | -10/Mines | Discovered new exit (range 10) 714 | -10/Mines | Discovered new exit (range 11) 832 | -10/Mines | Core integrity fell below 50% 849 | -10/Mines | Lost 6 parts (2p1n3w) 1032 | -10/Mines | Learned location of 1 exit from Materials 1039 | -10/Mines | Received a Rocket Launcher from a helpful Derelict 1226 | -10/Mines | Met a Derelict shopkeep closing up shop 1416 | -10/Mines | Entered Materials 1416 | -9/Materials | Evolved 2 slots: Utility x1, Weapon x1 1416 | -9/Materials | Identified Exp. Sensor Array 1417 | -9/Materials | Identified exit to Mines 1614 | -9/Materials | Lost 4 parts (2n1u1w) 1905 | -9/Materials | Discovered new exit (range 10) 1918 | -9/Materials | Entered another Materials area 1918 | -8/Materials | Evolved 2 slots: Propulsion x2 1980 | -8/Materials | Build established: Gunner 2228 | -8/Materials | Lost 3 parts (1u2w) 2515 | -8/Materials | Build established: Scavenger-Gunner 3103 | -8/Materials | Discovered new exit (range 15) 3141 | -8/Materials | Entered Factory 3141 | -7/Factory | Evolved 2 slots: Propulsion x1, Utility x1 3439 | -7/Factory | Build established: Scavenger-Skirmisher 3440 | -7/Factory | Identified exit to Factory 3579 | -7/Factory | System corruption reached 10% 3839 | -7/Factory | Lost 4 parts (3n1w) 4102 | -7/Factory | Build established: Scavenger-Mutant 4182 | -7/Factory | Entered another Factory area 4182 | -6/Factory | Evolved 2 slots: Utility x2 4507 | -6/Factory | Build established: Scavenger-Skirmisher 4699 | -6/Factory | Lost 4 parts (1n1u2w) 5019 | -6/Factory | Build established: Scavenger-Gunner 5079 | -6/Factory | Lost 3 parts (2n1w) 5185 | -6/Factory | Crushed by falling debris 5244 | -6/Factory | Lost 4 parts (1p1n2w) 5252 | -6/Factory | Discovered new exit (range 15) 5271 | -6/Factory | Identified exit to Extension 5275 | -6/Factory | Entered Extension 5296 | -6/Extension | Disrupted transfer network 5425 | -6/Extension | Lost 4 parts (2n2w) 5608 | -6/Extension | Energy Cycler disabled 5608 | -6/Extension | Rescued a captive Derelict 5608 | -6/Extension | Rescued a captive Derelict 5608 | -6/Extension | Rescued a captive Derelict 5608 | -6/Extension | Rescued a captive Derelict 5609 | -6/Extension | Rescued a captive Derelict 5609 | -6/Extension | Rescued a captive Derelict 5612 | -6/Extension | Rescued a captive Derelict 5613 | -6/Extension | Rescued a captive Derelict 5615 | -6/Extension | Rescued a captive Derelict 5751 | -6/Extension | Lost 3 parts (1p2w) 5978 | -6/Extension | Spotted B-75 Beast 5994 | -6/Extension | Spotted B-75 Beast 6000 | -6/Extension | Discovered new exit (range 15) 6011 | -6/Extension | Destroyed B-75 Beast 6016 | -6/Extension | System corruption reached 10% 6035 | -6/Extension | Destroyed B-75 Beast 6063 | -6/Extension | Lost 8 parts (2n1u5w) 6102 | -6/Extension | Extracted ID and sensor layout for unrecognized location from A7's data core 6262 | -6/Extension | Lost 12 parts (5n3u4w) 6302 | -6/Extension | Build established: Scavenger-Mutant 6612 | -6/Extension | Core integrity fell below 50% 6712 | -6/Extension | Found Launcher Loader 6868 | -6/Extension | Discovered new exit (range 10) 6869 | -6/Extension | Discovered new exit (range 6) 6891 | -6/Extension | Entered Cetus 6891 | -6/Cetus | Accompanied by 4 allies 6907 | -6/Cetus | Spotted Cetus Guard 6907 | -6/Cetus | Spotted Cetus Guard 6917 | -6/Cetus | Spotted Cetus Guard 6920 | -6/Cetus | Spotted Cetus Guard 6938 | -6/Cetus | Destroyed Cetus Guard 6948 | -6/Cetus | Destroyed Cetus Guard 6951 | -6/Cetus | Core integrity fell below 20% 6952 | -6/Cetus | Destroyed Cetus Guard 6956 | -6/Cetus | Destroyed Cetus Guard 6987 | -6/Cetus | Lost 9 parts (2p3n2u2w) 7046 | -6/Cetus | Crushed by falling debris 7046 | -6/Cetus | System corruption reached 30% 7081 | -6/Cetus | Core destroyed Last Messages --------------- 07069_ Adv. Variable Charge Gun destroyed. 07071_ Fission Core permanently disabled. 07071_ Overheating: Short circuit. 07071_ The unstable cave ceiling collapses. 07071_ Adv. Heat Sink crushed. 07072_ Overheating: Flexi-carbon Leg damaged (-60). 07072_ B-48 Gladiator destroyed. 07072_ Slug penetrates Wall. 07075_ Overheating: Energy bleed (-94). 07076_ System corrupted: Adv. Variable Charge Gun failed to cycle. 07076_ Slug penetrates G-50 Soldier. 07076_ Critical hit (Burn: +37). 07078_ Adv. Variable Charge Gun destroyed. 07079_ Overheating: Arm. Leg damaged (-51). 07079_ Overheating: Arm. Leg damaged (-149). 07079_ Overheating: Adv. Sensor Array damaged (-1). 07079_ Overheating: Lgt. Treads damaged (-4). 07079_ Hvy. Plasma Cannon destroyed. 07079_ Slug penetrates G-50 Soldier. 07081_ Overheating: Core damaged (-127). Map ----- +----------------------------------------------------+ | ?????????????????????????????????????????????????? | | ?????????????????????????????????????????????????? | | ?????????????????????????????????????????????????? | | ?????????????????????????????????????????????????? | | ?????????????????????????????????????????????????? | | ?????????????????????????????????????????????????? | | ?????????????????????????????????????????????????? | | ?????????????????????????????????????????????????? | | ?????????????????????????????????????????????????? | | ?????????????????????????????????????????????????? | | ??????????????????? ???????????????????????????? | | ??????????????????# ???????????????????????????? | | ??????????????????#" "???????????????????????????? | | ??????????????????#%"%#??????????????????????????? | | ??????????????????#" "#??????????????????????????? | | ??????????????????# #??????????????????????????? | | ??????????????????# #??????????????????????????? | | ??????????????????# #??????????????????????????? | | ??????????????????# #??????????????????????????? | | ??????????????????# #??????????????????????????? | | ??????????????????# "??????????????????????????? | | ??????????????????# ###????????????????????????? | | ??????????????????# ##*#???????????????????????? | | ??????????????##### ##%##???##?????????????????? | | ##"##"#########;;;; #g%%## ### ?????????????? | | =[g%@* ! ; ????????? | | = !gg%%= =%= ; ????????? | | !%=!% %* + ????????? | | ##############;;;#;;;##;;### ;##???? ??????????? | | ?????????????##### #### ##??#####????????????????? | | ?????????????????#????###????????????????????????? | | ?????????????????????????????????????????????????? | | ?????????????????????????????????????????????????? | | ?????????????????????????????????????????????????? | | ?????????????????????????????????????????????????? | | ?????????????????????????????????????????????????? | | ?????????????????????????????????????????????????? | | ?????????????????????????????????????????????????? | | ?????????????????????????????????????????????????? | | ?????????????????????????????????????????????????? | | ?????????????????????????????????????????????????? | | ?????????????????????????????????????????????????? | | ?????????????????????????????????????????????????? | | ?????????????????????????????????????????????????? | | ?????????????????????????????????????????????????? | | ?????????????????????????????????????????????????? | | ?????????????????????????????????????????????????? | | ?????????????????????????????????????????????????? | | ?????????????????????????????????????????????????? | | ?????????????????????????????????????????????????? | +----------------------------------------------------+ Best States ------------- Heat Dissipation 56 Coolant Potential 65 Energy Generation 18 Energy Capacity 660 Matter Stores 300 Matter Capacity 300 Sight Range 16 Robot Scan Range 20 Terrain Scan Density 10 Additional Mass Support 9 Armor Coverage 375 Resistance: KI 30 Propulsion Shielding 33 Evasion (%) 55 Targeting Accuracy 6 Target Analysis 5 Armor Integrity Analysis 35 Recoil Reduction 5 Item Schematics ----------------- Centrium Wheel | -6/Extension | Hacked Robot Schematics ------------------ None Fabricated ------------ Nothing Alien Tech Used ----------------- None Achievements -------------- None Challenges ------------ None Game ------ Seed LobotomySystemCorpse Manual? 0 Play Time 01:27:14 Cumulative 49.5 hours Start 2021.05.17 @ 04:41:08 End 2021.05.17 @ 06:10:16 Sessions 1 Manual Loads 0 Difficulty Rogue Special Mode None Game No. 195 Rogue 195 Adventurer 0 Explorer 0 Win Type - Total 0 Types 0/0/0/0/0/0/0/0/0 Lore% 45 Gallery% 68 Achievement% 42 Wizard Run 0 Options --------- ASCII 0 Keyboard 0 Movement Mouse Keybinds 0 Fullscreen 2 Font 18/SmallcapsGlow Map View 76x50 Tactical HUD 1 Map Filters NONE Filters NONE Steam 1 RUN: db3c2513-0910-40db-8ef0-cdebd22d193f